bitfinex/quotes_SOLUSD_20251124
["timestamp","ask_amount","ask_price","bid_price","bid_amount"]
[1763997899850,1.27999999,130.8,130.79,13.76882769]
[1763997900051,1.27999999,130.8,130.79,26.48767288]
[1763997900352,1.27999999,130.82,130.79,26.48767288]
[1763997900511,1.27999999,130.8,130.79,13.26882769]
[1763997900714,1.27999999,130.81,130.79,13.76882769]
[1763997900925,1.27999999,130.8,130.79,26.48767288]
[1763997901130,1.27999999,130.8,130.79,13.26882769]
[1763997901450,1.27999999,130.79,130.78,0.1]
[1763997901749,14.66884518,130.79,130.78,0.1]
[1763997902967,13.99884518,130.74,130.73,0.1]
[1763997903613,14.66884518,130.74,130.73,0.1]
[1763997904117,1.27999999,130.71,130.7,0.1]
[1763997904342,13.99884518,130.71,130.7,0.1]
[1763997904620,1.27999999,130.71,130.7,0.1]
[1763997904812,14.66884518,130.71,130.7,0.1]
[1763997905415,1.27999999,130.71,130.7,0.1]
[1763997905948,1.27999999,130.71,130.7,13.51884519]
[1763997906147,12.71884519,130.74,130.72,16.308864]
[1763997906148,0.57999999,130.74,130.72,16.308864]
[1763997906314,0.57999999,130.73,130.71,9.78882769]
[1763997906678,0.57999999,130.71,130.7,0.1]
[1763997906840,13.29884518,130.71,130.7,0.1]
[1763997907017,0.57999999,130.71,130.7,0.1]
[1763997907220,0.57999999,130.72,130.7,22.60767288]
[1763997907434,0.57999999,130.72,130.71,12.71884519]
[1763997907644,0.57999999,130.73,130.71,22.50767288]
[1763997907829,0.57999999,130.73,130.72,13.26882769]
[1763997908026,0.57999999,130.72,130.71,13.26882769]
[1763997908240,0.57999999,130.73,130.71,25.98767288]
[1763997908520,0.57999999,130.73,130.71,13.26882769]
[1763997908724,0.57999999,130.72,130.71,13.26882769]
[1763997909119,0.57999999,130.72,130.7,12.81884519]
[1763997909120,0.57999999,130.71,130.7,0.1]
[1763997909537,13.96884518,130.71,130.7,0.1]
[1763997909726,0.57999999,130.67,130.66,16.29884519]
[1763997910219,13.38884519,130.71,130.67,9.78882769]
[1763997910220,0.57999999,130.69,130.67,9.78882769]
[1763997910430,0.57999999,130.69,130.66,3.58]
[1763997910632,0.67,130.71,130.66,3.58]
[1763997910633,0.57999999,130.7,130.68,22.50767288]
[1763997910850,0.57999999,130.7,130.69,25.98767288]
[1763997911054,0.57999999,130.7,130.69,13.26882769]
[1763997911653,0.57999999,130.7,130.69,25.98767288]
[1763997911841,0.57999999,130.7,130.69,13.26882769]
[1763997912030,0.57999999,130.7,130.69,25.98767288]
[1763997912565,0.57999999,130.7,130.69,13.26882769]
[1763997913056,0.57999999,130.71,130.7,9.78882769]
[1763997913768,0.57999999,130.7,130.69,3.48]
[1763997914265,0.57999999,130.67,130.66,3.58]
[1763997914667,0.57999999,130.67,130.66,26.08767288]
[1763997914879,0.57999999,130.67,130.66,13.36882769]
[1763997915234,1.24999999,130.67,130.66,0.1]
[1763997915578,13.96884518,130.67,130.66,0.1]
[1763997915786,0.57999999,130.65,130.64,0.2]
[1763997915942,13.29884518,130.65,130.64,0.2]
[1763997916138,13.96884518,130.65,130.64,0.2]
[1763997916359,0.57999999,130.65,130.64,0.2]
[1763997916558,0.67,130.65,130.64,0.2]
[1763997916760,13.96884518,130.65,130.64,0.2]
[1763997917489,1.24999999,130.65,130.64,0.2]
[1763997917659,13.96884518,130.65,130.64,0.2]
[1763997918270,13.96884518,130.65,130.62,0.1]
[1763997918449,0.57999999,130.62,130.61,0.1]
[1763997918779,0.57999999,130.62,130.53,0.5]
[1763997918780,0.57999999,130.55,130.49,3.48]
[1763997918941,0.57999999,130.55,130.5,16.308864]
[1763997919140,13.96884518,130.55,130.5,16.308864]
[1763997919358,1.24999999,130.55,130.49,3.48]
[1763997919868,13.96884518,130.55,130.49,16.19884519]
[1763997920043,1.24999999,130.55,130.5,9.78882769]
[1763997920244,13.96884518,130.55,130.48,12.71884519]
[1763997920465,13.96884518,130.55,130.46,3.48]
[1763997920466,1.24999999,130.55,130.46,3.48]
[1763997920770,13.96884518,130.55,130.48,12.71884519]
[1763997920949,30.27770918,130.55,130.48,12.71884519]
[1763997921148,30.27770918,130.55,130.49,9.78882769]
[1763997921458,13.96884518,130.55,130.5,9.78882769]
[1763997921656,0.57999999,130.55,130.53,9.78882769]
[1763997922367,13.29884518,130.55,130.51,12.71884519]
[1763997922666,13.95884518,130.55,130.51,9.78882769]
[1763997922874,0.57999999,130.55,130.51,9.78882769]
[1763997923046,13.29884518,130.55,130.51,9.78882769]
[1763997923371,0.57999999,130.55,130.53,9.78882769]
[1763997923571,0.57999999,130.55,130.54,10.69882769]
[1763997923750,0.57999999,130.55,130.54,9.98882769]
[1763997924068,0.57999999,130.57,130.55,9.78882769]
[1763997924251,0.57999999,130.57,130.56,9.78882769]
[1763997924458,0.57999999,130.56,130.54,16.508864]
[1763997924655,0.57999999,130.56,130.55,9.78882769]
[1763997924853,0.57999999,130.56,130.55,23.21767288]
[1763997925669,0.57999999,130.61,130.58,16.308864]
[1763997925867,0.57999999,130.64,130.62,16.308864]
[1763997926043,0.57999999,130.65,130.64,9.78882769]
[1763997926248,0.57999999,130.61,130.58,12.71884519]
[1763997926568,0.57999999,130.61,130.59,22.50767288]
[1763997927144,0.57999999,130.61,130.6,0.71]
[1763997927346,0.57999999,130.61,130.6,13.42884519]
[1763997927542,0.57999999,130.61,130.59,9.78882769]
[1763997927746,0.57999999,130.6,130.59,23.21767288]
[1763997927967,0.57999999,130.61,130.59,23.21767288]
[1763997928171,0.57999999,130.6,130.59,9.78882769]
[1763997928469,0.57999999,130.6,130.55,12.71884519]
[1763997928470,0.57999999,130.59,130.55,12.71884519]
[1763997928765,0.57999999,130.58,130.57,9.78882769]
[1763997929142,0.57999999,130.58,130.57,12.71884519]
[1763997929359,0.57999999,130.58,130.57,22.50767288]
[1763997929667,0.57999999,130.61,130.58,9.78882769]
[1763997929856,0.57999999,130.61,130.57,29.73770919]
[1763997930059,0.57999999,130.59,130.58,9.78882769]
[1763997930268,0.57999999,130.59,130.58,13.26882769]
[1763997930475,0.57999999,130.59,130.58,3.48]
[1763997931291,0.57999999,130.58,130.56,3.48]
[1763997931466,0.57999999,130.59,130.58,9.78882769]
[1763997931671,0.57999999,130.58,130.56,3.48]
[1763997931864,0.57999999,130.58,130.57,9.78882769]
[1763997932184,0.57999999,130.58,130.56,3.48]
[1763997932365,0.57999999,130.57,130.56,9.78882769]
[1763997932774,0.57999999,130.56,130.54,0.2]
[1763997933150,0.57999999,130.56,130.55,9.78882769]
[1763997933351,0.57999999,130.58,130.55,22.50767288]
[1763997933554,0.57999999,130.58,130.56,16.19884519]
[1763997933759,0.57999999,130.6,130.57,22.50767288]
[1763997933964,0.57999999,130.6,130.59,9.78882769]
[1763997934296,0.57999999,130.58,130.57,9.78882769]
[1763997934588,0.57999999,130.59,130.57,34.95745654]
[1763997934771,0.57999999,130.6,130.58,8.85976485]
[1763997934946,0.57999999,130.6,130.57,9.78882769]
[1763997935259,0.57999999,130.6,130.58,9.78882769]
[1763997935447,0.57999999,130.59,130.58,9.78882769]
[1763997935651,0.57999999,130.57,130.56,13.26882769]
[1763997936075,0.57999999,130.56,130.54,8.34976485]
[1763997936353,0.57999999,130.56,130.55,9.78882769]
[1763997937665,0.57999999,130.58,130.55,18.64859254]
[1763997937887,0.57999999,130.59,130.58,9.78882769]
[1763997938584,0.57999999,130.58,130.57,3.48]
[1763997938757,0.57999999,130.57,130.55,9.78882769]
[1763997938952,0.57999999,130.55,130.54,9.98882769]
[1763997939858,9.38976484,130.55,130.54,0.2]
[1763997940672,1.23999999,130.55,130.54,0.2]
[1763997940989,9.38976484,130.55,130.54,0.2]
[1763997941784,25.69862884,130.55,130.54,0.2]
[1763997945402,17.54886399,130.55,130.54,0.2]
[1763997946009,1.23999999,130.55,130.54,0.2]
[1763997946207,9.38976484,130.55,130.54,0.2]
[1763997948078,1.23999999,130.55,130.54,0.2]
[1763997948295,1.28999999,130.55,130.54,0.2]
[1763997948495,9.43976484,130.55,130.54,0.2]
[1763997949485,0.57999999,130.55,130.54,0.2]
[1763997949689,1.28999999,130.55,130.54,0.2]
[1763997950111,9.43976484,130.55,130.54,0.2]
[1763997950603,1.28999999,130.55,130.54,0.2]
[1763997950906,0.57999999,130.49,130.47,8.14976485]
[1763997951106,16.308864,130.52,130.42,8.14976485]
[1763997951107,0.57999999,130.45,130.42,8.14976485]
[1763997951314,0.57999999,130.45,130.43,17.93859254]
[1763997951478,0.57999999,130.45,130.42,8.14976485]
[1763997951679,0.57999999,130.45,130.43,9.78882769]
[1763997951888,16.308864,130.52,130.43,9.78882769]
[1763997951889,0.57999999,130.46,130.44,17.93859254]
[1763997952080,0.57999999,130.5,130.46,9.78882769]
[1763997952297,0.57999999,130.49,130.48,9.78882769]
[1763997952801,0.57999999,130.49,130.46,17.93859254]
[1763997953299,0.57999999,130.52,130.48,17.93859254]
[1763997953504,0.57999999,130.52,130.51,17.93859254]
[1763997953678,0.57999999,130.52,130.51,9.78882769]
[1763997953875,0.57999999,130.51,130.5,17.93859254]
[1763997954078,0.57999999,130.53,130.5,8.14976485]
[1763997954293,0.57999999,130.53,130.51,8.14976485]
[1763997954494,0.57999999,130.53,130.5,17.93859254]
[1763997954709,0.57999999,130.52,130.49,8.86976485]
[1763997954907,0.57999999,130.52,130.5,9.78882769]
[1763997955092,0.57999999,130.51,130.5,9.78882769]
[1763997955793,0.57999999,130.51,130.5,8.86976485]
[1763997955993,0.57999999,130.52,130.51,9.78882769]
[1763997956187,0.57999999,130.57,130.52,9.78882769]
[1763997956384,0.57999999,130.57,130.55,8.14976485]
[1763997956696,0.57999999,130.56,130.55,13.26882769]
[1763997957009,0.57999999,130.58,130.56,9.78882769]
[1763997957308,0.57999999,130.59,130.57,8.14976485]
[1763997957509,0.57999999,130.59,130.58,17.93859254]
[1763997957807,0.57999999,130.59,130.58,9.78882769]
[1763997957988,0.57999999,130.6,130.56,8.14976485]
[1763997958180,0.67,130.62,130.57,9.78882769]
[1763997958181,0.57999999,130.59,130.57,9.78882769]
[1763997958387,0.57999999,130.58,130.57,9.78882769]
[1763997959321,0.57999999,130.57,130.56,3.48]
[1763997959912,0.57999999,130.52,130.48,0.72]
[1763997960109,0.57999999,130.51,130.43,7.66672105]
[1763997960310,0.57999999,130.52,130.49,0.72]
[1763997960600,0.57999999,130.52,130.51,9.78882769]
[1763997961115,0.57999999,130.52,130.5,3.48]
[1763997961116,0.57999999,130.51,130.5,3.48]
[1763997961318,0.57999999,130.51,130.5,13.26882769]
[1763997962314,0.57999999,130.51,130.5,13.98882769]
[1763997962696,0.57999999,130.51,130.5,13.26882769]
[1763997963122,0.57999999,130.51,130.5,9.78882769]
[1763997963325,0.57999999,130.5,130.49,3.48]
[1763997963523,0.57999999,130.51,130.49,13.26882769]
[1763997963726,0.57999999,130.51,130.5,9.78882769]
[1763997963899,1.24999999,130.51,130.49,3.48]
[1763997964096,0.57999999,130.5,130.49,3.48]
[1763997964729,9.39976484,130.5,130.49,3.48]
[1763997964923,9.39976484,130.5,130.46,13.26882769]
[1763997965227,0.57999999,130.47,130.46,21.41859254]
[1763997965531,0.57999999,130.47,130.46,13.26882769]
[1763997966007,0.57999999,130.48,130.46,13.98882769]
[1763997966422,0.57999999,130.47,130.45,17.93859254]
[1763997966631,0.57999999,130.47,130.46,3.48]
[1763997966803,0.57999999,130.47,130.45,10.50882769]
[1763997967000,0.57999999,130.46,130.43,0.72]
[1763997967229,0.57999999,130.45,130.44,13.26882769]
[1763997967730,0.57999999,130.45,130.44,13.98882769]
[1763997967898,0.57999999,130.45,130.44,13.26882769]
[1763997968105,0.57999999,130.46,130.44,13.26882769]
[1763997968426,8.81976485,130.49,130.45,8.86976485]
[1763997968427,0.57999999,130.49,130.45,8.86976485]
[1763997968636,0.57999999,130.49,130.48,17.93859254]
[1763997968928,0.57999999,130.49,130.48,21.41859254]
[1763997969109,0.57999999,130.49,130.48,13.26882769]
[1763997969506,0.57999999,130.49,130.44,0.72]
[1763997969734,0.57999999,130.47,130.45,13.26882769]
[1763997969921,0.57999999,130.45,130.4,0.1]
[1763997970120,0.57999999,130.44,130.42,8.14976485]
[1763997970334,0.57999999,130.46,130.44,9.78882769]
[1763997970557,0.57999999,130.5,130.46,9.78882769]
[1763997970706,0.57999999,130.5,130.49,9.78882769]
[1763997971029,0.57999999,130.5,130.49,13.26882769]
[1763997971534,1.24999999,130.5,130.49,13.26882769]
[1763997971734,0.57999999,130.49,130.46,8.86976485]
[1763997971908,0.57999999,130.49,130.48,9.78882769]
[1763997973342,0.57999999,130.49,130.48,10.50882769]
[1763997974146,0.57999999,130.49,130.48,18.65859254]
[1763997974549,0.57999999,130.49,130.48,9.78882769]
[1763997975233,8.14976485,130.64,130.48,9.78882769]
[1763997975234,0.57999999,130.51,130.48,18.65859254]
[1763997975447,0.57999999,130.5,130.48,10.50882769]
[1763997975765,0.57999999,130.51,130.5,9.78882769]
[1763997976073,0.57999999,130.53,130.5,17.93859254]
[1763997976238,0.57999999,130.53,130.51,9.78882769]
[1763997976437,0.57999999,130.52,130.51,9.78882769]
[1763997976663,0.57999999,130.52,130.5,3.48]
[1763997976837,0.57999999,130.53,130.51,18.65859254]
[1763997977038,0.57999999,130.53,130.52,17.93859254]
[1763997977470,0.57999999,130.53,130.52,9.78882769]
[1763997977672,0.57999999,130.52,130.51,9.78882769]
[1763997977970,0.57999999,130.51,130.5,13.26882769]
[1763997978973,0.57999999,130.54,130.51,9.78882769]
[1763997979152,0.57999999,130.53,130.51,18.65859254]
[1763997979474,0.57999999,130.56,130.52,18.65859254]
[1763997979773,0.57999999,130.55,130.54,9.78882769]
[1763997979947,0.57999999,130.57,130.54,17.93859254]
[1763997980268,0.57999999,130.61,130.56,17.93859254]
[1763997980449,0.57999999,130.6,130.57,3.48]
[1763997980646,0.57999999,130.58,130.57,13.26882769]
[1763997980843,8.72976484,130.58,130.57,3.48]
[1763997981161,9.39976484,130.58,130.57,3.48]
[1763997981363,0.57999999,130.54,130.53,3.48]
[1763997982163,0.57999999,130.55,130.54,9.78882769]
[1763997982345,8.72976484,130.55,130.54,9.78882769]
[1763997982761,8.72976484,130.55,130.53,3.48]
[1763997982962,8.72976484,130.54,130.53,3.48]
[1763997983282,0.57999999,130.52,130.51,13.26882769]
[1763997983646,0.57999999,130.52,130.51,13.92882769]
[1763997983856,0.57999999,130.52,130.51,13.26882769]
[1763997984159,0.57999999,130.52,130.51,3.48]
[1763997984667,0.57999999,130.52,130.51,4.14]
[1763997984854,0.57999999,130.51,130.48,9.78882769]
[1763997985060,0.57999999,130.51,130.49,3.48]
[1763997985268,0.57999999,130.51,130.49,4.14]
[1763997985661,0.57999999,130.5,130.49,4.14]
[1763997986062,0.57999999,130.53,130.5,9.78882769]
[1763997986265,16.308864,130.6,130.49,12.28976485]
[1763997986266,0.57999999,130.52,130.49,3.48]
[1763997986585,0.57999999,130.51,130.49,13.26882769]
[1763997986773,8.72976484,130.52,130.49,3.48]
[1763997987083,0.57999999,130.5,130.49,4.14]
[1763997987481,0.57999999,130.5,130.49,13.92882769]
[1763997987682,0.57999999,130.5,130.49,13.26882769]
[1763997987855,0.57999999,130.52,130.49,13.92882769]
[1763997988054,0.57999999,130.52,130.5,18.59859254]
[1763997988255,0.57999999,130.53,130.5,18.59859254]
[1763997988492,0.57999999,130.52,130.49,3.48]
[1763997988781,0.57999999,130.51,130.49,3.48]
[1763997989090,0.57999999,130.5,130.49,3.48]
[1763997989775,0.57999999,130.5,130.49,4.14]
[1763997989971,0.57999999,130.52,130.49,22.07859254]
[1763997990170,0.57999999,130.53,130.5,10.44882769]
[1763997990364,0.57999999,130.56,130.52,17.93859254]
[1763997990697,8.2,130.66,130.54,17.93859254]
[1763997990698,0.57999999,130.57,130.54,17.93859254]
[1763997990857,0.57999999,130.59,130.56,8.14976485]
[1763997991058,0.57999999,130.59,130.58,9.78882769]
[1763997991781,0.57999999,130.58,130.57,3.48]
[1763997992292,0.57999999,130.58,130.55,13.26882769]
[1763997992673,8.14976485,130.59,130.51,17.07508881]
[1763997992674,0.57999999,130.54,130.52,3.48]
[1763997992993,0.57999999,130.53,130.52,3.48]
[1763997993197,0.57999999,130.51,130.49,4.14]
[1763997993371,0.57999999,130.51,130.5,9.78882769]
[1763997993704,0.57999999,130.51,130.49,4.14]
[1763997993869,0.57999999,130.51,130.5,9.78882769]
[1763997994362,0.57999999,130.46,130.44,0.66]
[1763997994567,0.57999999,130.46,130.43,3.48]
[1763997994777,0.57999999,130.45,130.43,4.14]
[1763997995002,0.57999999,130.46,130.44,9.78882769]
[1763997995170,0.57999999,130.46,130.44,10.44882769]
[1763997995367,0.57999999,130.47,130.45,10.44882769]
[1763997995589,0.57999999,130.46,130.45,9.78882769]
[1763997995775,8.14976485,130.5,130.45,9.78882769]
[1763997995776,0.57999999,130.47,130.45,13.26882769]
[1763997995965,0.58,130.52,130.46,17.93859254]
[1763997995966,0.57999999,130.5,130.46,17.93859254]
[1763997996166,0.57999999,130.5,130.48,26.09769169]
[1763997996364,0.57999999,130.49,130.48,29.57769169]
[1763997997183,0.57999999,130.49,130.48,30.23769169]
[1763997997378,0.57999999,130.49,130.48,13.26882769]
[1763997997593,0.57999999,130.48,130.46,13.26882769]
[1763997997779,0.57999999,130.47,130.46,13.26882769]
[1763997998377,0.57999999,130.47,130.41,0.66]
[1763997998378,0.57999999,130.45,130.41,0.66]
[1763997998581,0.57999999,130.44,130.43,13.26882769]
[1763997999602,0.57999999,130.44,130.43,13.92882769]
[1763998000104,0.57999999,130.44,130.43,3.48]
[1763998000908,0.57999999,130.44,130.43,4.14]
[1763998001208,0.57999999,130.44,130.43,3.48]
[1763998001712,0.57999999,130.44,130.4,9.88882769]
[1763998001713,0.57999999,130.42,130.4,9.88882769]
[1763998002008,0.57999999,130.44,130.41,0.66]
[1763998002182,0.57999999,130.43,130.41,0.66]
[1763998002618,0.57999999,130.44,130.41,0.66]
[1763998002822,0.57999999,130.46,130.43,12.7912285]
[1763998003109,0.57999999,130.46,130.41,0.66]
[1763998003110,0.57999999,130.43,130.41,4.14]
[1763998003321,0.57999999,130.43,130.42,9.78882769]
[1763998003530,0.57999999,130.43,130.42,10.44882769]
[1763998003908,0.57999999,130.45,130.42,10.44882769]
[1763998004112,0.57999999,130.43,130.42,22.58005619]
[1763998004614,0.57999999,130.46,130.42,23.24005619]
[1763998004792,0.57999999,130.46,130.45,9.78882769]
[1763998005124,0.57999999,130.46,130.45,13.26882769]
[1763998005280,0.57999999,130.46,130.45,3.48]
[1763998005683,0.57999999,130.43,130.4,0.1]
[1763998005879,13.3712285,130.46,130.4,0.1]
[1763998005880,0.57999999,130.41,130.4,0.1]
[1763998006104,13.37122849,130.41,130.4,0.1]
[1763998006309,13.95122849,130.41,130.4,0.1]
[1763998006713,13.37122849,130.41,130.4,0.1]
[1763998006893,0.57999999,130.41,130.4,0.1]
[1763998007093,13.37122849,130.41,130.4,0.1]
[1763998007402,30.26009249,130.41,130.4,0.1]
[1763998008682,26.74245699,130.41,130.4,0.1]
[1763998009506,0.57999999,130.36,130.35,0.1]
[1763998010087,13.37122849,130.36,130.35,0.1]
[1763998010520,0.57999999,130.36,130.35,0.1]
[1763998011518,0.57999999,130.36,130.35,0.8]
[1763998011723,0.57999999,130.37,130.36,9.78882769]
[1763998012400,0.57999999,130.37,130.36,0.7]
[1763998013215,0.57999999,130.38,130.36,0.7]
[1763998013430,0.57999999,130.37,130.36,0.7]
[1763998014415,0.57999999,130.41,130.37,9.78882769]
[1763998014722,0.57999999,130.4,130.39,9.78882769]
[1763998014922,0.57999999,130.39,130.38,4.17]
[1763998015100,0.57999999,130.4,130.39,10.47882769]
[1763998015506,0.57999999,130.4,130.38,13.26882769]
[1763998015719,0.57999999,130.39,130.38,13.95882769]
[1763998015925,0.57999999,130.4,130.39,0.69]
[1763998016108,0.57999999,130.39,130.38,13.95882769]
[1763998016311,0.57999999,130.37,130.36,13.95882769]
[1763998017044,0.57999999,130.37,130.36,4.17]
[1763998017218,0.57999999,130.37,130.36,3.48]
[1763998017724,0.57999999,130.36,130.35,0.1]
[1763998017920,13.37122849,130.36,130.35,0.1]
[1763998020433,30.26009249,130.36,130.35,0.1]
[1763998020738,0.57999999,130.32,130.31,0.1]
[1763998020911,26.74245699,130.32,130.31,0.1]
[1763998021730,43.05132099,130.32,130.31,0.1]
[1763998022519,26.74245699,130.32,130.31,0.1]
[1763998022718,0.4599484,130.25,130.24,10.47882769]
[1763998023064,0.4599484,130.28,130.25,9.78882769]
[1763998023266,0.4599484,130.3,130.27,9.78882769]
[1763998023562,0.4599484,130.28,130.27,9.78882769]
[1763998023747,0.4599484,130.28,130.27,10.47882769]
[1763998024044,0.4599484,130.26,130.25,3.48]
[1763998024357,0.4599484,130.27,130.26,9.78882769]
[1763998024521,0.4599484,130.27,130.25,4.17]
[1763998024716,0.4599484,130.26,130.25,13.26882769]
[1763998025047,0.4599484,130.29,130.26,9.78882769]
[1763998025252,0.4599484,130.31,130.29,9.78882769]
[1763998025543,0.4599484,130.35,130.31,9.78882769]
[1763998025847,0.4599484,130.37,130.35,9.78882769]
[1763998026054,0.4599484,130.37,130.36,10.47882769]
[1763998026252,0.4599484,130.4,130.36,23.27005619]
[1763998026426,0.4599484,130.44,130.4,9.78882769]
[1763998026628,0.4599484,130.41,130.4,13.26882769]
[1763998026949,0.4599484,130.38,130.37,10.47882769]
[1763998027149,0.4599484,130.38,130.37,9.78882769]
[1763998027652,0.4599484,130.38,130.37,10.47882769]
[1763998027834,0.4599484,130.36,130.35,4.17]
[1763998028013,0.4599484,130.37,130.36,0.69]
[1763998028223,0.4599484,130.37,130.36,10.47882769]
[1763998028762,0.4599484,130.4,130.37,9.78882769]
[1763998029052,0.4599484,130.4,130.37,23.27005619]
[1763998029264,16.308864,130.45,130.39,9.78882769]
[1763998029265,0.4599484,130.41,130.39,9.78882769]
[1763998029421,0.4599484,130.46,130.41,9.78882769]
[1763998029623,0.4599484,130.46,130.45,12.7912285]
[1763998029825,0.4599484,130.48,130.46,9.78882769]
[1763998030162,12.7912285,130.51,130.44,4.17]
[1763998030163,0.4599484,130.47,130.44,4.17]
[1763998030455,0.4599484,130.44,130.42,0.69]
[1763998030659,0.4599484,130.44,130.43,9.78882769]
[1763998030863,0.4599484,130.47,130.44,9.78882769]
[1763998031050,0.4599484,130.45,130.44,10.47882769]
[1763998031434,0.4599484,130.48,130.44,23.27005619]
[1763998031640,0.4599484,130.46,130.45,23.27005619]
[1763998032152,0.2,130.54,130.46,9.78882769]
[1763998032153,0.4599484,130.5,130.46,9.78882769]
[1763998032463,0.2,130.54,130.46,3.48]
[1763998032464,0.4599484,130.47,130.46,3.48]
[1763998032669,0.4599484,130.47,130.43,13.95882769]
[1763998032958,0.4599484,130.44,130.4,0.69]
[1763998033158,0.4599484,130.41,130.4,0.69]
[1763998033361,0.4599484,130.43,130.4,13.4812285]
[1763998033561,0.4599484,130.43,130.42,9.78882769]
[1763998033938,0.4599484,130.43,130.42,10.47882769]
[1763998034660,2.0,130.51,130.42,10.47882769]
[1763998034661,6.20811055,130.54,130.42,26.06005619]
[1763998034957,12.7912285,130.49,130.43,0.69]
[1763998035193,12.7912285,130.49,130.44,9.78882769]
[1763998035473,16.308864,130.53,130.44,9.78882769]
[1763998035651,12.7912285,130.5,130.44,23.27005619]
[1763998035973,12.7912285,130.51,130.47,9.78882769]
[1763998036160,12.7912285,130.49,130.45,9.78882769]
[1763998036339,12.7912285,130.47,130.4,0.69]
[1763998036534,12.7912285,130.44,130.42,9.78882769]
[1763998036740,0.69,130.49,130.4,16.2712285]
[1763998036958,12.7912285,130.46,130.42,9.78882769]
[1763998037157,16.998864,130.49,130.42,9.78882769]
[1763998037373,12.7912285,130.44,130.4,3.48]
[1763998037574,16.998864,130.49,130.4,3.48]
[1763998037575,12.7912285,130.43,130.4,3.48]
[1763998037777,16.308864,130.47,130.41,9.78882769]
[1763998038070,12.7912285,130.45,130.41,10.47882769]
[1763998038274,12.7912285,130.44,130.41,10.47882769]
[1763998038473,16.998864,130.47,130.41,10.47882769]
[1763998038474,12.7912285,130.45,130.41,10.47882769]
[1763998039154,12.7912285,130.43,130.41,9.78882769]
[1763998039348,16.308864,130.47,130.41,9.78882769]
[1763998039349,0.69,130.46,130.41,9.78882769]
[1763998039551,12.7912285,130.44,130.41,9.78882769]
[1763998039758,12.7912285,130.45,130.41,10.47882769]
[1763998040944,12.7912285,130.44,130.41,9.78882769]
[1763998041563,16.308864,130.47,130.4,3.48]
[1763998041846,12.7912285,130.53,130.47,9.78882769]
[1763998042061,12.7912285,130.51,130.47,13.26882769]
[1763998042261,12.7912285,130.49,130.45,29.1000925]
[1763998042452,12.7912285,130.49,130.45,9.78882769]
[1763998042641,16.308864,130.53,130.45,9.78882769]
[1763998042842,12.7912285,130.5,130.45,23.28005619]
[1763998043137,0.2,130.54,130.44,19.788864]
[1763998043138,0.89,130.54,130.48,22.58005619]
[1763998043343,12.7912285,130.53,130.48,26.06005619]
[1763998043573,0.89,130.54,130.48,26.76005619]
[1763998043786,12.7912285,130.51,130.48,13.26882769]
[1763998043972,12.7912285,130.53,130.48,26.06005619]
[1763998044149,12.7912285,130.52,130.48,13.96882769]
[1763998044561,0.69,130.53,130.48,13.96882769]
[1763998044950,12.7912285,130.5,130.45,26.06005619]
[1763998045267,0.69,130.53,130.47,9.78882769]
[1763998045575,12.7912285,130.52,130.46,10.48882769]
[1763998045747,12.7912285,130.52,130.48,9.78882769]
[1763998045944,0.2,130.54,130.5,9.78882769]
[1763998046138,0.2,130.54,130.51,12.7912285]
[1763998046349,0.2,130.54,130.52,22.58005619]
[1763998046567,0.2,130.54,130.53,3.48]
[1763998046774,0.2,130.54,130.53,26.76005619]
[1763998046951,0.2,130.54,130.49,0.7]
[1763998047139,0.2,130.54,130.5,26.06005619]
[1763998047341,12.9912285,130.54,130.5,13.26882769]
[1763998047547,12.7912285,130.52,130.47,0.7]
[1763998047759,12.7912285,130.52,130.48,13.26882769]
[1763998048270,12.7912285,130.52,130.48,13.96882769]
[1763998048566,12.7912285,130.53,130.49,0.7]
[1763998048765,12.7912285,130.52,130.49,0.7]
[1763998048968,12.7912285,130.52,130.48,13.26882769]
[1763998049173,12.7912285,130.52,130.48,26.76005619]
[1763998049343,12.7912285,130.52,130.48,13.96882769]
[1763998050157,12.7912285,130.53,130.49,0.7]
[1763998050364,12.7912285,130.53,130.48,13.26882769]
[1763998050681,12.7912285,130.52,130.49,0.7]
[1763998051044,12.7912285,130.53,130.48,26.06005619]
[1763998051245,0.2,130.54,130.5,9.78882769]
[1763998051769,12.9912285,130.54,130.51,9.78882769]
[1763998051969,0.2,130.54,130.51,9.78882769]
[1763998052289,12.7912285,130.53,130.49,9.78882769]
[1763998052577,12.9912285,130.54,130.51,9.78882769]
[1763998052880,12.9912285,130.54,130.48,3.48]
[1763998052881,12.7912285,130.52,130.48,3.48]
[1763998053062,12.7912285,130.52,130.49,9.78882769]
[1763998053259,12.7912285,130.53,130.49,10.48882769]